Cogmind - Beta 15 @@@ ROGUE MODE // 2025.08.07 @ 13:40:27 Player: Zoe Result: Destroyed by C-35 Carver with Carbide Saw Performance ------------- Evolutions (7) 3500 Regions Visited (15) 3000 Robots Destroyed (25) 125 Value Destroyed (538) 538 Prototype IDs (23) 460 Alien Tech Used (0) 0 Bonus (1300) 1300 TOTAL SCORE: 8923 Bonus ------- Entered DSFs 1000 Aligned with FarCom 300 Cogmind --------- Core Integrity 0/1300 Matter 157/300 Energy 98/100 System Corruption 11% Temperature Cool (0) Movement Core (50) Location -3/Research Parts ------- > --- POWER (3) -------- (None) > --- PROPULSION (6) --- (None) > --- UTILITY (6) ------ (None) > --- WEAPON (6) ------- (None) > --- INVENTORY (5) ---- Improved Fusion Compressor Improved Focal Shield Improved Force Field Improved Datajack Peak State ------------ > --- POWER ------------ Improved Fusion Compressor > --- PROPULSION ------- Nuclear Pulse Thruster Impulse Thruster > --- UTILITY ---------- Advanced Sensor Array Improved Cloaking Device Focal Shield Hacking Suite > --- WEAPON ----------- Advanced Datajack > --- INVENTORY -------- Improved Datajack [Rating: 46] Favorites ----------- Power Ion Engine Engine Ion Engine Power Core Light Nuclear Core Propulsion Light Treads Treads Light Treads Leg Aluminum Leg Flight Unit Flight Unit Utility Small Storage Unit Device Improved Terrain Scanner Storage Small Storage Unit Processor Improved Targeting Computer Hackware Hacking Suite Weapon Assault Rifle Energy Gun Thermic Laser Ballistic Gun Assault Rifle Special Weapon Mining Laser Special Melee Weapon Advanced Datajack Build | -11 -10 -9 -9 -9 -8 -8 -7 -7 -6 -5 -5 -4 -4 -4 -3 ------- Run | Yrd Mat Mat Min Exi Min Mat Fac DSF Fac Fac DSF Fac Upp Upp Res Slots Evolved 14 | . . 2 . . . 2 2 . 2 2 . 2 . . 2 Power 2 | . . . . . . . 1 . . . . 1 . . . Propulsion 4 | . . 2 . . . 1 . . . . . 1 . . . Utility 4 | . . . . . . 1 1 . 1 . . . . . 1 Weapon 4 | . . . . . . . . . 1 2 . . . . 1 Parts Attached 53 | 10 7 9 . 1 2 2 1 . 1 . 3 9 1 1 6 Power 7 | 1 1 1 . . . . 1 . . . 1 1 . . 1 Engine 5 | 1 1 1 . . . . 1 . . . 1 . . . . Core 2 | . . . . . . . . . . . . 1 . . 1 Reactor . | . . . . . . . . . . . . . . . . Propulsion 15 | 3 2 4 . . 1 . . . . . 1 2 . . 2 Treads 2 | 2 . . . . . . . . . . . . . . . Leg 1 | 1 . . . . . . . . . . . . . . . Wheel . | . . . . . . . . . . . . . . . . Hover . | . . . . . . . . . . . . . . . . Flight 12 | . 2 4 . . 1 . . . . . 1 2 . . 2 Utility 17 | 3 1 1 . 1 . 2 . . 1 . 1 3 1 . 3 Device 11 | 2 1 . . 1 . 1 . . . . 1 2 . . 3 Storage 2 | 1 . . . . . 1 . . . . . . . . . Processor 2 | . . 1 . . . . . . . . . . 1 . . Hackware 2 | . . . . . . . . . 1 . . 1 . . . Protection . | . . . . . . . . . . . . . . . . Artifact . | . . . . . . . . . . . . . . . . Weapon 14 | 3 3 3 . . 1 . . . . . . 3 . 1 . Energy Gun 1 | . . . . . . . . . . . . 1 . . . Energy Cannon . | . . . . . . . . . . . . . . . . Ballistic Gun 10 | 2 3 3 . . 1 . . . . . . . . 1 . Ballistic Cannon . | . . . . . . . . . . . . . . . . Launcher . | . . . . . . . . . . . . . . . . Special Weapon 1 | 1 . . . . . . . . . . . . . . . Impact Weapon . | . . . . . . . . . . . . . . . . Slashing Weapon . | . . . . . . . . . . . . . . . . Piercing Weapon . | . . . . . . . . . . . . . . . . Special Melee Weapon 2 | . . . . . . . . . . . . 2 . . . Unidentified Prototypes . | . . . . . . . . . . . . . . . . Parts Lost 25 | . 3 2 . . . 1 . 5 . . 2 5 . 2 5 Power 4 | . 1 . . . . . . 1 . . 1 . . . 1 Propulsion 10 | . 1 1 . . . 1 . 3 . . . 2 . . 2 Utility 9 | . 1 1 . . . . . 1 . . 1 2 . 1 2 Weapon 2 | . . . . . . . . . . . . 1 . 1 . Highest Loss Streak 5 | . 2 2 . . . 1 . 5 . . 2 5 . 1 4 To Critical Strikes . | . . . . . . . . . . . . . . . . Average Backups 6 | 7 7 6 7 8 8 7 7 7 1 2 1 2 2 2 3 Power 1 | . 1 2 2 2 2 2 1 2 . 1 . . 1 1 1 Propulsion 2 | 3 3 . . . . . . . . . . . . . . Utility . | . 1 . . . . . . . . 1 1 . . . 1 Weapon 2 | 1 1 3 5 6 5 5 6 5 . . . . . . . Tool/Special . | . . . . . . . . . . . . . . . . Unused Backups 10 | . 5 1 . . 1 . . 2 . . . . . . 1 Power 2 | . . 1 . . . . . 1 . . . . . . . Propulsion 3 | . 3 . . . . . . . . . . . . . . Utility 2 | . 1 . . . . . . . . . . . . . 1 Weapon 3 | . 1 . . . 1 . . 1 . . . . . . . Tool/Special . | . . . . . . . . . . . . . . . . Average Slot Usage (%) 64 | . 98 98 100 100 100 92 71 61 . 5 3 26 12 14 13 Engine 6 | . 13 11 11 11 11 9 9 5 . . . . . . . Treads 2 | . 17 . . . . . . . . . . . . . . Flight 21 | . 10 43 44 44 44 44 30 25 . . . 5 . . 2 Device 8 | . 13 9 . 5 11 11 15 14 . . . 10 5 1 . Storage 6 | . 14 11 11 11 11 9 7 6 . . . . . . . Processor 1 | . . . 11 5 . . . . . . . . 2 5 3 Hackware 1 | . . . . . . . . . . 5 1 4 5 5 3 Ballistic Gun 13 | . 27 21 20 22 22 17 7 6 . . . . . 3 . Peak Build Rating 46 | 9 9 16 16 23 23 26 25 25 6 6 15 46 14 20 39 Average Rating 12 | 8 8 13 15 19 23 25 23 20 1 6 4 27 11 12 15 On Entrance 11 | . 9 6 15 16 23 23 23 23 . 6 6 5 9 14 9 Naked Turns 312 | . . . . . . . . 5 268 . 26 . . . 13 Heaviest Build 19 | 14 15 17 15 16 16 19 16 16 . . 1 11 1 6 7 Greatest Support 40 | 40 40 16 16 16 16 20 16 16 3 3 6 13 3 3 16 Greatest Overweight (x) 3 | 1 3 1 . . . . . 2 . . . . . 1 2 Average Overweight (x) . | . . . . . . . . . . . . . . . . Largest Inventory Capacity 8 | 8 8 8 8 8 8 8 8 8 5 5 5 5 5 5 5 Average Capacity 7 | 7 8 8 8 8 8 8 8 7 5 5 5 5 5 5 5 Most Carried 8 | 8 8 8 8 8 8 8 8 8 3 2 3 5 3 3 5 Average Carried 6 | 7 7 6 7 8 8 7 7 7 1 2 1 2 2 2 3 Final Capacity 8 | 8 8 8 8 8 8 8 8 5 5 5 5 5 5 5 5 Final Carried 8 | 8 8 7 8 8 8 8 8 . 2 2 1 2 3 3 4 Class Distribution -------------------- 77% | Mutant 18% | Scavenger-Sprinter 3% | Ninja Dominant Class ---------------- Mutant | -10/Materials Scavenger-Sprinter | -9/Materials Scavenger-Sprinter | -9/Mines Scavenger-Sprinter | -9/Exiles Scavenger-Sprinter | -8/Mines Scavenger-Sprinter | -8/Materials Scavenger-Sprinter | -7/Factory Scavenger-Sprinter | -7/DSF Mutant | -6/Factory Mutant | -5/Factory Mutant | -5/DSF Mutant | -4/Factory Mutant | -4/Upper Caves Mutant | -4/Upper Caves Mutant | -3/Research Resources | -11 -10 -9 -9 -9 -8 -8 -7 -7 -6 -5 -5 -4 -4 -4 -3 ----------- Run | Yrd Mat Mat Min Exi Min Mat Fac DSF Fac Fac DSF Fac Upp Upp Res Matter Collected 1186 | 345 253 217 20 . 34 . . 32 66 . . . 39 30 150 Remotely . | . . . . . . . . . . . . . . . . Salvage Created 777 | 128 487 35 . . 25 40 . 32 . . . . . 30 . Parts 50 | 9 35 . . . 2 3 . . . . . . . 1 . Haulers Intercepted . | . . . . . . . . . . . . . . . . Recyclers Shooed 1 | 1 . . . . . . . . . . . . . . . Parts Field Recycled . | . . . . . . . . . . . . . . . . Retrieved Matter . | . . . . . . . . . . . . . . . . Parts Self-Destructed . | . . . . . . . . . . . . . . . . Prevented . | . . . . . . . . . . . . . . . . Kills | -11 -10 -9 -9 -9 -8 -8 -7 -7 -6 -5 -5 -4 -4 -4 -3 ------- Run | Yrd Mat Mat Min Exi Min Mat Fac DSF Fac Fac DSF Fac Upp Upp Res Combat Hostiles Destroyed 19 | . 13 1 . . 2 1 . 1 . . . . . 1 . Guns 19 | . 13 1 . . 2 1 . 1 . . . . . 1 . Classes Destroyed 7 | 2 2 . . . . 2 . 1 . . . . . . . Worker 1 | . . . . . . 1 . . . . . . . . . Tunneler 3 | 3 . . . . . . . . . . . . . . . Recycler 2 | 1 1 . . . . . . . . . . . . . . Swarmer 9 | . 6 . . . 2 . . . . . . . . 1 . Grunt 8 | . 7 1 . . . . . . . . . . . . . Specialist 1 | . . . . . . . . 1 . . . . . . . Hunter 1 | . . . . . . 1 . . . . . . . . . Best Kill Streak 7 | 2 7 1 . . 2 1 . 1 . . . . . 1 . Combat Bots Only 6 | . 6 1 . . 2 1 . 1 . . . . . 1 . Max Kills in Single Turn 2 | 1 2 1 . . 1 1 . 1 . . . . . 1 . Gunslinging 1 | . 1 . . . . . . . . . . . . . . Exploded . | . . . . . . . . . . . . . . . . Melee . | . . . . . . . . . . . . . . . . Uniques/NPCs Destroyed . | . . . . . . . . . . . . . . . . Combat | -11 -10 -9 -9 -9 -8 -8 -7 -7 -6 -5 -5 -4 -4 -4 -3 -------- Run | Yrd Mat Mat Min Exi Min Mat Fac DSF Fac Fac DSF Fac Upp Upp Res Hostile Shots Fired 366 | . 59 7 . . 3 15 . 34 . . 36 99 4 20 89 Missed 141 | . 11 3 . . 1 6 . 13 . . 11 49 2 5 40 Hits 225 | . 48 4 . . 2 9 . 21 . . 25 50 2 15 49 Melee 38 | . . . . . . . . 14 . . 16 . . . 8 Projectile 187 | . 48 4 . . 2 9 . 7 . . 9 50 2 15 41 AOE 4 | . . . . . . . . 1 . . . . . . 3 Critical Strikes 21 | . 2 . . . . . . 5 . . 6 2 . 1 5 Damage Taken 4612 | . 503 42 . . 17 139 . 395 . . 945 772 40 251 1508 Core 3186 | . 115 . . . . . . 220 . . 850 530 40 114 1317 Absorbed by Shields 68 | . . . . . . . . 17 . . . 51 . . . Ignored by Resistances 58 | . . . . . . . . . . . . 58 . . . Regen/Repaired (Parts) 11 | . . . . . . 11 . . . . . . . . . Core Remaining (%) 72 | 100 54 . . . 100 100 . 68 100 . 15 . . 40 . Volleys Fired 102 | 27 48 4 6 . 2 7 . 3 . . . . . 5 . Largest 2 | 2 2 2 1 . 2 2 . 2 . . . . . 1 . Hottest 100 | 100 100 45 100 . 45 50 . 50 . . . . . 33 . Shots Fired 167 | 47 79 8 6 . 4 14 . 4 . . . . . 5 . Gun 153 | 40 78 8 . . 4 14 . 4 . . . . . 5 . Cannon . | . . . . . . . . . . . . . . . . Launcher . | . . . . . . . . . . . . . . . . Special 14 | 7 1 . 6 . . . . . . . . . . . . Kinetic 153 | 40 78 8 . . 4 14 . 4 . . . . . 5 . Thermal 14 | 7 1 . 6 . . . . . . . . . . . . Explosive . | . . . . . . . . . . . . . . . . Electromagnetic . | . . . . . . . . . . . . . . . . Robot Hit Streak 10 | 5 10 7 . . 2 7 . 2 . . . . . 2 . Robot Miss Streak 4 | 2 2 1 . . 2 2 . 2 . . . . . 4 . Penetration Max . | . . . . . . . . . . . . . . . . Secondary Targets 1 | . 1 . . . . . . . . . . . . . . Max Gunslinging Chain 1 | . 1 . . . . . . . . . . . . . . Shots Hit Robots 107 | 25 50 8 . . 2 13 . 4 . . . 3 . 2 . Core Hits 43 | 6 22 3 . . 2 7 . 2 . . . . . 1 . Critical Kills . | . . . . . . . . . . . . . . . . Critical Parts Destroyed . | . . . . . . . . . . . . . . . . Critical Strikes . | . . . . . . . . . . . . . . . . Melee Attacks 4 | . . . . . . . . . . . . 4 . . . Impact . | . . . . . . . . . . . . . . . . Slashing . | . . . . . . . . . . . . . . . . Piercing . | . . . . . . . . . . . . . . . . Sneak Attacks 1 | . . . . . . . . . . . . 1 . . . Combat Hostiles . | . . . . . . . . . . . . . . . . Follow-up Attacks . | . . . . . . . . . . . . . . . . Damage Inflicted 1373 | 240 638 144 . . 24 220 . 53 . . . . . 51 3 Guns 1370 | 240 638 144 . . 24 220 . 53 . . . . . 51 . Cannons . | . . . . . . . . . . . . . . . . Explosions . | . . . . . . . . . . . . . . . . Melee . | . . . . . . . . . . . . . . . . Ramming 3 | . . . . . . . . . . . . . . . 3 Kinetic 1370 | 240 638 144 . . 24 220 . 53 . . . . . 51 . Thermal . | . . . . . . . . . . . . . . . . Explosive . | . . . . . . . . . . . . . . . . Electromagnetic . | . . . . . . . . . . . . . . . . Impact . | . . . . . . . . . . . . . . . . Slashing . | . . . . . . . . . . . . . . . . Piercing . | . . . . . . . . . . . . . . . . Highest Corruption 11 | . . . . . . . . . . . . 4 4 6 11 Average Corruption 3 | . . . . . . . . . . . . 3 4 4 2 Corruption Purged . | . . . . . . . . . . . . . . . . Corruption Blocked . | . . . . . . . . . . . . . . . . Effects 10 | . . . . . . . . . . . . 3 3 1 3 Message Errors 1 | . . . . . . . . . . . . 1 . . . Matter Fused 3 | . . . . . . . . . . . . 1 2 . . Heat Flow Errors 1 | . . . . . . . . . . . . . . . 1 Energy Discharges 2 | . . . . . . . . . . . . . 1 1 . Data Loss (minor) 2 | . . . . . . . . . . . . 1 . . 1 Misdirections 1 | . . . . . . . . . . . . . . . 1 Overload Shots . | . . . . . . . . . . . . . . . . Overflow Damage . | . . . . . . . . . . . . . . . . Projectiles . | . . . . . . . . . . . . . . . . Explosions . | . . . . . . . . . . . . . . . . Melee . | . . . . . . . . . . . . . . . . Knockbacks . | . . . . . . . . . . . . . . . . Impact . | . . . . . . . . . . . . . . . . Kinetic . | . . . . . . . . . . . . . . . . Secondary . | . . . . . . . . . . . . . . . . Self-Inflicted Damage 1 | . . . . . . . . . . . . . . . 1 Shots . | . . . . . . . . . . . . . . . . Rammed 1 | . . . . . . . . . . . . . . . 1 Targets Rammed 1 | . . . . . . . . . . . . . . . 1 Kicked . | . . . . . . . . . . . . . . . . Crushed . | . . . . . . . . . . . . . . . . Highest Temperature 217 | 62 28 3 162 . 1 6 . . . . . . . . 217 Average Temperature 45 | 22 4 3 91 . 1 3 . . . . . . . . 116 Received Heat Transfer 336 | . 237 24 . . . 36 . 9 . . . . 21 . 9 Siege Activations . | . . . . . . . . . . . . . . . . Martial Activations . | . . . . . . . . . . . . . . . . Shielding Activations . | . . . . . . . . . . . . . . . . Robots Disrupted . | . . . . . . . . . . . . . . . . Combat Hostiles . | . . . . . . . . . . . . . . . . Robots Corrupted . | . . . . . . . . . . . . . . . . Combat Hostiles . | . . . . . . . . . . . . . . . . Parts Fried . | . . . . . . . . . . . . . . . . Impact Corruptions . | . . . . . . . . . . . . . . . . Robots Melted . | . . . . . . . . . . . . . . . . Combat Hostiles . | . . . . . . . . . . . . . . . . Parts Melted . | . . . . . . . . . . . . . . . . Heat Transferred . | . . . . . . . . . . . . . . . . Parts Sabotaged . | . . . . . . . . . . . . . . . . Parts Stolen . | . . . . . . . . . . . . . . . . Parts Stripped . | . . . . . . . . . . . . . . . . Power Chain Reactions . | . . . . . . . . . . . . . . . . Alert | -11 -10 -9 -9 -9 -8 -8 -7 -7 -6 -5 -5 -4 -4 -4 -3 ------- Run | Yrd Mat Mat Min Exi Min Mat Fac DSF Fac Fac DSF Fac Upp Upp Res Maximum Alert Level . | . . . . . . . . . . . . . . . . Low Security (%) 100 | 100 100 100 100 . 100 100 100 100 100 100 100 100 . . 100 Level 1 . | . . . . . . . . . . . . . . . . Level 2 . | . . . . . . . . . . . . . . . . Level 3 . | . . . . . . . . . . . . . . . . Level 4 . | . . . . . . . . . . . . . . . . Level 5 . | . . . . . . . . . . . . . . . . High Security . | . . . . . . . . . . . . . . . . Max Security . | . . . . . . . . . . . . . . . . Peak Influence 187 | 5 187 81 7 . 50 30 . 20 2 . . 57 . . 29 Initial 78 | . . 78 7 . . 11 . . 2 . . . . . 9 Average 6 | . 65 13 . . 19 4 . 14 . . . 2 . . 3 Influence Increases 812 | 20 345 57 3 . 50 88 . 35 . . . 95 . 65 54 Destroy 0b10 Robot/C 380 | . 260 20 . . 40 20 . 20 . . . . . 20 . Destroy 0b10 Robot/NC 30 | 20 5 . . . . 5 . . . . . . . . . Destroy Leader 80 | . 60 . . . 10 10 . . . . . . . . . Trap Triggered on 0b10 10 | . . . . . . 10 . . . . . . . . . Successful Hack 68 | . 19 7 . . . 13 . . . . . 5 . . 24 Destroy Structure 4 | . 1 . 3 . . . . . . . . . . . . Partial Spotted 30 | . . . . . . 15 . . . . . 15 . . . Lose Combat Pursuer 210 | . . 30 . . . 15 . 15 . . . 75 . 45 30 Influence Decreases 797 | 20 158 224 23 . 20 116 2 30 5 . . 54 41 50 54 Entered New Map 168 | . . 109 13 . . 19 2 . 3 . . . 16 . 6 Time Decay 500 | 20 128 105 10 . 20 87 . . 2 . . 34 25 40 29 Lost Part 129 | . 30 10 . . . 10 . 30 . . . 20 . 10 19 Squads Dispatched 21 | . 3 4 . . . 2 . 1 2 . 1 3 . . 5 Investigation 4 | . 2 1 . . . . . . 1 . . . . . . Extermination 3 | . . . . . . . . . . . . 2 . . 1 Reinforcement 10 | . 1 3 . . . . . 1 1 . 1 1 . . 2 Assault 2 | . . . . . . . . . . . . . . . 2 Garrison 2 | . . . . . . 2 . . . . . . . . . Intercept . | . . . . . . . . . . . . . . . . Searches Triggered . | . . . . . . . . . . . . . . . . Construction Impeded . | . . . . . . . . . . . . . . . . Haulers Reinforced . | . . . . . . . . . . . . . . . . Active Scanning Responses . | . . . . . . . . . . . . . . . . Cargo Convoy Interrupts . | . . . . . . . . . . . . . . . . Stealth | -11 -10 -9 -9 -9 -8 -8 -7 -7 -6 -5 -5 -4 -4 -4 -3 --------- Run | Yrd Mat Mat Min Exi Min Mat Fac DSF Fac Fac DSF Fac Upp Upp Res Distress Signals 5 | . 1 2 . . . 1 . . . . . 1 . . . Communications Jammed . | . . . . . . . . . . . . . . . . Distress Signals . | . . . . . . . . . . . . . . . . Times Spotted 94 | . 19 3 . . 3 13 . 6 2 . 5 23 2 6 12 Peak Tracking Total 15 | . 6 3 . . 3 10 . 4 1 . 5 15 4 4 9 Tactical Retreats 8 | . . 1 . . . 1 . 1 . . . 2 . 1 2 Traps | -11 -10 -9 -9 -9 -8 -8 -7 -7 -6 -5 -5 -4 -4 -4 -3 ------- Run | Yrd Mat Mat Min Exi Min Mat Fac DSF Fac Fac DSF Fac Upp Upp Res Traps Triggered 7 | . 1 . . . . . . 2 . . 2 1 . . 1 Indirectly . | . . . . . . . . . . . . . . . . Trap Hack Attempts . | . . . . . . . . . . . . . . . . Triggered . | . . . . . . . . . . . . . . . . Disarmed . | . . . . . . . . . . . . . . . . Reprogrammed . | . . . . . . . . . . . . . . . . Reused 1 | . . . . . . 1 . . . . . . . . . Traps Reconfigurated 12 | . . . . . . 10 . 2 . . . . . . . Traps Extracted . | . . . . . . . . . . . . . . . . Installed . | . . . . . . . . . . . . . . . . Triggered 1 | . . . . . . 1 . . . . . . . . . Machines | -11 -10 -9 -9 -9 -8 -8 -7 -7 -6 -5 -5 -4 -4 -4 -3 ---------- Run | Yrd Mat Mat Min Exi Min Mat Fac DSF Fac Fac DSF Fac Upp Upp Res Machines Disabled . | . . . . . . . . . . . . . . . . Max in Single Turn . | . . . . . . . . . . . . . . . . Garrison Access 1 | . . . . . . . . . . . . . . . 1 Machines Repaired . | . . . . . . . . . . . . . . . . Machines Dismantled . | . . . . . . . . . . . . . . . . Machines Sabotaged . | . . . . . . . . . . . . . . . . Overloaded Fab Kills . | . . . . . . . . . . . . . . . . Hacking | -11 -10 -9 -9 -9 -8 -8 -7 -7 -6 -5 -5 -4 -4 -4 -3 --------- Run | Yrd Mat Mat Min Exi Min Mat Fac DSF Fac Fac DSF Fac Upp Upp Res Machines Accessed 20 | . 2 5 . 1 . 5 1 . 2 1 . 1 . . 2 Terminals 14 | . 2 4 . . . 4 1 . 1 1 . 1 . . . Fabricators 1 | . . . . . . . . . . . . . . . 1 Repair Stations 1 | . . . . . . 1 . . . . . . . . . Recycling Units 3 | . . 1 . . . . . . 1 . . . . . 1 Scanalyzers . | . . . . . . . . . . . . . . . . Garrison Access . | . . . . . . . . . . . . . . . . Total Hacks 54 | . 12 14 . 1 . 14 2 . 5 2 . 1 . . 3 Successful 35 | . 6 9 . 1 . 12 1 . 2 1 . 1 . . 2 Failed 19 | . 6 5 . . . 2 1 . 3 1 . . . . 1 Catastrophic 2 | . 1 1 . . . . . . . . . . . . . Database Lockouts . | . . . . . . . . . . . . . . . . Manual 42 | . 12 14 . 1 . 10 . . 5 . . . . . . Terminals 43 | . 12 13 . . . 11 2 . 2 2 . 1 . . . Fabricators 1 | . . . . . . . . . . . . . . . 1 Repair Stations 3 | . . . . . . 3 . . . . . . . . . Recycling Units 6 | . . 1 . . . . . . 3 . . . . . 2 Scanalyzers . | . . . . . . . . . . . . . . . . Garrison Access . | . . . . . . . . . . . . . . . . Terminal Hacks 10 | . 3 1 . 1 . 2 1 . . 1 . 1 . . . Open DSF 3 | . . . . . . . 1 . . 1 . 1 . . . Branch Access Points 2 | . 1 . . . . 1 . . . . . . . . . Terminal Index 3 | . 1 1 . . . 1 . . . . . . . . . Zone Layout 1 | . 1 . . . . . . . . . . . . . . Proto ID Catalog 1 | . . . . 1 . . . . . . . . . . . Fabricator Hacks 1 | . . . . . . . . . . . . . . . 1 Build 1 | . . . . . . . . . . . . . . . 1 Repair Station Hacks 2 | . . . . . . 2 . . . . . . . . . Scan Component 1 | . . . . . . 1 . . . . . . . . . Repair 1 | . . . . . . 1 . . . . . . . . . Recycling Unit Hacks 1 | . . . . . . . . . . . . . . . 1 Retrieve Matter 1 | . . . . . . . . . . . . . . . 1 Scanalyzer . | . . . . . . . . . . . . . . . . Garrison Access Hacks . | . . . . . . . . . . . . . . . . Unauthorized Hacks 20 | . 3 7 . . . 8 . . 2 . . . . . . Terminals 19 | . 3 7 . . . 8 . . 1 . . . . . . Track 8 | . 1 3 . . . 4 . . . . . . . . . Assimilate 1 | . . . . . . . . . 1 . . . . . . Botnet 10 | . 2 4 . . . 4 . . . . . . . . . Fabricators . | . . . . . . . . . . . . . . . . Repair Stations . | . . . . . . . . . . . . . . . . Recycling Units 1 | . . . . . . . . . 1 . . . . . . Reject 1 | . . . . . . . . . 1 . . . . . . Scanalyzers . | . . . . . . . . . . . . . . . . Garrison Access . | . . . . . . . . . . . . . . . . Data Cores Recovered . | . . . . . . . . . . . . . . . . Used . | . . . . . . . . . . . . . . . . Hacking Detections 13 | . 2 5 . . . 2 1 . 2 . . . . . 1 Full Trace Events 6 | . 2 3 . . . . . . 1 . . . . . . Feedback Events . | . . . . . . . . . . . . . . . . Feedback Blocked . | . . . . . . . . . . . . . . . . Robot Schematics Acquired . | . . . . . . . . . . . . . . . . Robots Built . | . . . . . . . . . . . . . . . . Authchips . | . . . . . . . . . . . . . . . . Time . | . . . . . . . . . . . . . . . . Total Robot Build Rating . | . . . . . . . . . . . . . . . . Part Schematics Acquired . | . . . . . . . . . . . . . . . . Parts Built . | . . . . . . . . . . . . . . . . Authchips . | . . . . . . . . . . . . . . . . Time 46 | . . . . . . . . . . . . . . . 46 Total Part Build Rating . | . . . . . . . . . . . . . . . . Parts Repaired 1 | . . . . . . 1 . . . . . . . . . Time 26 | . . . . . . 26 . . . . . . . . . Parts Recycled . | . . . . . . . . . . . . . . . . Recycled Matter . | . . . . . . . . . . . . . . . . Retrieved Matter . | . . . . . . . . . . . . . . . . Retrieved Components . | . . . . . . . . . . . . . . . . Parts Scanalyzed . | . . . . . . . . . . . . . . . . Part Schematics Acquired . | . . . . . . . . . . . . . . . . Parts Damaged . | . . . . . . . . . . . . . . . . Bothacking | -11 -10 -9 -9 -9 -8 -8 -7 -7 -6 -5 -5 -4 -4 -4 -3 ------------ Run | Yrd Mat Mat Min Exi Min Mat Fac DSF Fac Fac DSF Fac Upp Upp Res Used RIF Installer . | . . . . . . . . . . . . . . . . Robots Hacked 1 | . . . . . . . . . . . . 1 . . . Non-combat 1 | . . . . . . . . . . . . 1 . . . Combat . | . . . . . . . . . . . . . . . . Robot Hacks Applied 2 | . . . . . . . . . . . . 2 . . . parse_system 2 | . . . . . . . . . . . . 2 . . . Relay Couplers Released 3 | . . . . . . . . . . . . . . . 3 Machine Destruction 3 | . . . . . . . . . . . . . . . 3 Fabnet Peak Effective % . | . . . . . . . . . . . . . . . . Robots Rewired . | . . . . . . . . . . . . . . . . Allies Hacked . | . . . . . . . . . . . . . . . . Hacks Repelled . | . . . . . . . . . . . . . . . . Allies | -11 -10 -9 -9 -9 -8 -8 -7 -7 -6 -5 -5 -4 -4 -4 -3 -------- Run | Yrd Mat Mat Min Exi Min Mat Fac DSF Fac Fac DSF Fac Upp Upp Res Total Allies 1 | . . . . . . . . . 1 . . . . . . Largest Group 1 | . . . . . . . . . 1 . . . . . . Highest-Rated Group 10 | . . . . . . . . . 10 . . . . . . Highest-Rated Ally 10 | . . . . . . . . . 10 . . . . . . Total Orders 3 | . . . . . . . . . 3 . . . . . . STAY 1 | . . . . . . . . . 1 . . . . . . ROAM 1 | . . . . . . . . . 1 . . . . . . FOLLOW 1 | . . . . . . . . . 1 . . . . . . Ally Attacks . | . . . . . . . . . . . . . . . . Total Damage . | . . . . . . . . . . . . . . . . Kills . | . . . . . . . . . . . . . . . . Allies Corrupted . | . . . . . . . . . . . . . . . . Allies Melted . | . . . . . . . . . . . . . . . . Intel | -11 -10 -9 -9 -9 -8 -8 -7 -7 -6 -5 -5 -4 -4 -4 -3 ------- Run | Yrd Mat Mat Min Exi Min Mat Fac DSF Fac Fac DSF Fac Upp Upp Res Active Infowar (turns) 6568 | 5217 690 577 . . . . . . . . . 83 1 . . Sensors 759 | . 98 577 . . . . . . . . . 83 1 . . Terrain 3244 | 2652 592 . . . . . . . . . . . . . . Seismic 2565 | 2565 . . . . . . . . . . . . . . . Cloaking 83 | . . . . . . . . . . . . 83 . . . Robot Analysis Total . | . . . . . . . . . . . . . . . . Derelict Logs Recovered 1 | . . . 1 . . . . . . . . . . . . Drone Launches . | . . . . . . . . . . . . . . . . Drone Recoveries . | . . . . . . . . . . . . . . . . Exploration | -11 -10 -9 -9 -9 -8 -8 -7 -7 -6 -5 -5 -4 -4 -4 -3 ------------- Run | Yrd Mat Mat Min Exi Min Mat Fac DSF Fac Fac DSF Fac Upp Upp Res Turns Passed 9468 | 5334 708 642 296 69 65 551 14 166 308 12 49 801 92 87 274 Spaces Moved 5246 | 1499 200 274 374 216 134 319 41 109 312 23 89 853 178 107 518 Core 1084 | 21 . . . . . . . 29 312 23 76 93 178 107 245 Treads 1562 | 1478 84 . . . . . . . . . . . . . . Legs . | . . . . . . . . . . . . . . . . Wheels . | . . . . . . . . . . . . . . . . Hover . | . . . . . . . . . . . . . . . . Flight 2600 | . 116 274 374 216 134 319 41 80 . . 13 760 . . 273 Fastest Speed 28 | 50 117 31 31 31 31 28 31 31 50 50 40 37 50 50 37 Average Speed 77 | 158 141 31 31 31 31 28 31 45 50 50 48 40 50 69 44 Slowest Speed 280 | 160 280 111 31 31 31 31 31 150 50 50 50 50 50 100 150 Overloaded Moves . | . . . . . . . . . . . . . . . . Propulsion Burnouts . | . . . . . . . . . . . . . . . . Robots Hopped 3 | . . 2 . . . . . . . . . 1 . . . Potential Cave-ins . | . . . . . . . . . . . . . . . . Cave-ins Triggered . | . . . . . . . . . . . . . . . . Exploration Rate (%) 38 | 110 33 30 54 61 37 27 1 76 8 1 89 27 34 13 19 Regions Visited 15 Branch Regions 5 Pre-discovered Areas 1 | . . . 1 . . . . . . . . . . . . Known Exits Taken 2 | . . . . . . . 1 . . 1 . . . . . Unknown Exits Taken 11 | 1 1 1 1 1 1 1 . . 1 . . 1 1 1 . Scrap Searched 3 | . . . 1 . 1 . . . . . . . 1 . . Spaces Dug 7 | . 1 . 6 . . . . . . . . . . . . Terrain Destroyed 10 | 1 1 . 6 . . . . . . . . . . 2 . Melee . | . . . . . . . . . . . . . . . . Projectile 10 | 1 1 . 6 . . . . . . . . . . 2 . AOE . | . . . . . . . . . . . . . . . . Terrain Rammed . | . . . . . . . . . . . . . . . . Walls Destroyed . | . . . . . . . . . . . . . . . . Machines Disabled . | . . . . . . . . . . . . . . . . Actions | -11 -10 -9 -9 -9 -8 -8 -7 -7 -6 -5 -5 -4 -4 -4 -3 --------- Run | Yrd Mat Mat Min Exi Min Mat Fac DSF Fac Fac DSF Fac Upp Upp Res Total 10446 | 4393 554 820 534 217 154 764 42 224 463 22 94 1308 180 113 564 Wait 4886 | 2845 270 516 152 . 13 429 . 71 148 . 1 412 . . 29 Move 5225 | 1498 199 269 373 215 133 318 40 108 311 22 88 850 177 106 518 Hop 3 | . . 2 . . . . . . . . . 1 . . . Pick Up 61 | 11 14 10 1 . 1 3 . . 3 . 2 7 2 1 6 Fast Attach 6 | 4 . . . 1 . . . . . . . 1 . . . Attach 45 | 3 2 9 . . . 3 1 1 1 . 3 14 1 1 6 Detach 16 | . . 2 . . . 1 1 1 . . . 8 . . 3 Swap 21 | 5 7 2 2 . 2 2 . . . . . 1 . . . Drop 34 | . 14 6 . 1 3 1 . 7 . . . 1 . . 1 Fire 102 | 27 48 4 6 . 2 7 . 3 . . . . . 5 . Melee 4 | . . . . . . . . . . . . 4 . . . Ram 1 | . . . . . . . . . . . . . . . 1 Kick . | . . . . . . . . . . . . . . . . Crush . | . . . . . . . . . . . . . . . . Escape Stasis 42 | . . . . . . . . 33 . . . 9 . . . Rewire . | . . . . . . . . . . . . . . . . Trap . | . . . . . . . . . . . . . . . . Miscellaneous . | . . . . . . . . . . . . . . . . Route ------- -11/Scrapyard -10/Materials (discovered 2 exits: *Mat / *Min) -9/Materials -9/Mines -9/Exiles -8/Mines -8/Materials -7/Factory -7/DSF -6/Factory -5/Factory -5/DSF -4/Factory -4/Upper Caves -4/Upper Caves -3/Research (discovered 1 exit: [*Tes]) History --------- Turn | Location | Event 6 | -11/Scrapyard | Discovered new exit (range 14) 5335 | -11/Scrapyard | Entered Materials 5356 | -10/Materials | Build established: Mutant 5782 | -10/Materials | Identified exit to Mines 6032 | -10/Materials | Discovered new exit (range 3) 6043 | -10/Materials | Entered another Materials area 6043 | -9/Materials | Evolved 2 slots: Propulsion x2 6342 | -9/Materials | Build established: Scavenger-Sprinter 6680 | -9/Materials | Discovered new exit (range 7) 6685 | -9/Materials | Entered Mines 6689 | -9/Mines | A weapon hastily lodged in a ceiling crevice suddenly fell to the ground 6692 | -9/Mines | Learned Materials trap positions 6931 | -9/Mines | Found a damaged Exp. Sensor Array with a note attached 6935 | -9/Mines | Learned location of Storage (-9) 6944 | -9/Mines | Assembled infested the area 6949 | -9/Mines | Assisted by a Guerilla fighting off Assembled 6980 | -9/Mines | Deemed a non-threat by the Exiles lab entrance 6980 | -9/Mines | Discovered new exit (range 5) 6981 | -9/Mines | Entered Exiles 6990 | -9/Exiles | Met 8R-AWN 6995 | -9/Exiles | Met EX-HEX 7004 | -9/Exiles | Met EX-BIN 7007 | -9/Exiles | Aligned with FarCom system 7008 | -9/Exiles | Given EX-Vault access code 7016 | -9/Exiles | Opened EX-Vault 7019 | -9/Exiles | Found Trap Reconfigurator 7027 | -9/Exiles | Warned to stay clear of 0b10 Research branches 7036 | -9/Exiles | Met EX-DEC 7047 | -9/Exiles | Discovered new exit (range 11) 7050 | -9/Exiles | Left Exiles lab with Trap Reconfigurator 7050 | -9/Exiles | Entered Mines 7106 | -8/Mines | Discovered new exit (range 9) 7115 | -8/Mines | Entered Materials 7115 | -8/Materials | Evolved 2 slots: Propulsion x1, Utility x1 7116 | -8/Materials | Loaded intel: 32 trap records 7407 | -8/Materials | Repaired Flight Unit 7532 | -8/Materials | Garrison activated, responded to threat 7661 | -8/Materials | Discovered new exit (range 14) 7666 | -8/Materials | Entered Factory 7666 | -7/Factory | Evolved 2 slots: Power x1, Utility x1 7680 | -7/Factory | Identified exit to DSF 7680 | -7/Factory | Entered DSF 7827 | -7/DSF | Additional patrols routed to DSF 7836 | -7/DSF | Discovered new exit (range 16) 7846 | -7/DSF | Entered Factory 7846 | -6/Factory | Evolved 2 slots: Utility x1, Weapon x1 7872 | -6/Factory | Lost 5 parts (1p3n1u) 8113 | -6/Factory | Build established: Mutant 8153 | -6/Factory | Discovered new exit (range 3) 8154 | -6/Factory | Entered another Factory area 8154 | -5/Factory | Evolved 2 slots: Weapon x2 8166 | -5/Factory | Identified exit to DSF 8166 | -5/Factory | Entered DSF 8182 | -5/DSF | Additional patrols routed to DSF 8197 | -5/DSF | Core integrity fell below 50% 8208 | -5/DSF | Core integrity fell below 20% 8209 | -5/DSF | Discovered new exit (range 15) 8215 | -5/DSF | Entered Factory 8215 | -4/Factory | Evolved 2 slots: Power x1, Propulsion x1 8951 | -4/Factory | Build established: Ninja 9012 | -4/Factory | Discovered new exit (range 10) 9016 | -4/Factory | Entered Upper Caves 9047 | -4/Upper Caves | Lost 5 parts (2n2u1w) 9101 | -4/Upper Caves | Discovered new exit (range 15) 9108 | -4/Upper Caves | Entered another Upper Caves area 9110 | -4/Upper Caves | Core integrity fell below 50% 9191 | -4/Upper Caves | Discovered new exit (range 9) 9195 | -4/Upper Caves | Entered Research 9195 | -3/Research | Evolved 2 slots: Utility x1, Weapon x1 9310 | -3/Research | Build established: Mutant 9380 | -3/Research | Spotted B-86 Titan 9454 | -3/Research | Discovered new exit (range 15) 9457 | -3/Research | Core integrity fell below 50% 9457 | -3/Research | System corruption reached 10% 9465 | -3/Research | Core integrity fell below 20% 9469 | -3/Research | Destroyed by C-35 Carver with Carbide Saw Last Messages --------------- corruption cleaned. 09430_ ALERT: Suspicious intruders detected, dispatching Cutter reinforcements to area. 09432_ Imp. Focal Shield destroyed. 09438_ Fabricator disabled. 09454_ EXIT=FOUND 09454_ Knocked back. 09456_ Hacking Suite destroyed. 09456_ System corrupted by crushing effect (+5). 09456_ Knocked back. 09457_ U-05 Engineer destroyed. 09462_ Penetrated by Slug. 09462_ Knocked back. 09467_ Slammed into H-71 Marshal. 09468_ H-71 Marshal calls for reinforcements. 09468_ ALERT: Hostile activity reported, dispatching reinforcements to area. 09468_ Knocked back. 09469_ P-80 Master resets H-71 Marshal, system corruption cleaned. Map ----- +----------------------------------------------------+ | ??????????????##########??# [ | | ??????????????# + #### | | ??????????????# # ! !!! !]= | | ??????????????# # * !! ]== | | ??????????????# ! !! ]== | | ??????????????# ] # !%| | | ??????????????# ? ==! | | ??????????????####### | | ???????????????????# ###### | | ???????????????????# #????? | | ???????????????????# #????? | | ???????????????????# #????? | | ???????????????????# #????? | | ???????????????????# p #????? | | ???????????????????# pp# # #????? | | ???????????????????# ## #????? | | ???????????????????# % ### #????? | | ???????????????????## ### ###### | | ????????????????????# ##?# # ! | | ???????????????????## #??# ############## | | ???????????????????#; #??# #????????????# | | ????????????????####; #??#Y#???????##???# | | ????????????????? ;## #### #?###### #???# | | ??????????????????# ## #?# #???###### | | ??????????????????# %c ## ### ########## | | ??????????????????# cc @ ## + ! + """" | | ??????????????????+ H ###### # """""" | | ??????????????????# #????# [# ""F | | ??????????????????# #????# # "" | | ??????????????????# #????#####/## | | ??????????????????#########????????# | | ??????????????????????########?????# | | ??????????????????????# ####### | | ??????????????????????# # | | ??????????????????????# + | | ??????????????????????# # ###/## | | ??????????????????????# ## ## # | | ??????????????????????# ! ## ## # | | ??????????????????????######### ## # | | ????????????????????????????###+##### ##[ # | | ????????????????????????????# ## ## # | | ????????????????????????????# ## ## ]# | | ????????????????????????????# !!!## ## # | | ????????????????????????????# !!!############# | | ????????????????????????????#! !!!#???????????? | | ????????????????????????????# #???????????? | | ????????????????????????????########???????????? | | ???????????????????????????????????????????????? | | ???????????????????????????????????????????????? | | ???????????????????????????????????????????????? | +----------------------------------------------------+ Best States ------------- Heat Dissipation 46 Energy Generation 35 Energy Capacity 250 Matter Stores 300 Matter Capacity 300 Sight Range 16 Robot Scan Range 16 Terrain Scan Range 16 Terrain Scan Density 10 Cloak Strength 3 Resistance: KI 25 Evasion (%) 64 Targeting Accuracy 6 Recoil Reduction 2 Offensive Hacking 12 Item Schematics ----------------- None Robot Schematics ------------------ None Fabricated ------------ Nothing Repaired ---------- Flight Unit | 45% | -8/Materials Alien Tech Used ----------------- None Achievements -------------- Dangerous Findings Challenges ------------ None Game ------ Seed DefenseAerolevStatue Manual? 0 Play Time 01:09:53 Cumulative 29.4 hours Start 2025.08.07 @ 12:30:45 End 2025.08.07 @ 13:40:27 Sessions 1 Manual Loads 0 Difficulty Rogue Special Mode None Game No. 58 Rogue 55 Adventurer 3 Explorer 0 Win Type - Total 0 Types 0/0/0/0/0/0/0/0/0/0 Lore% 26 Gallery% 22 Achievement% 24 Wizard Run 0 Options --------- Layout 1 ASCII 0 Keyboard 0 Movement Mouse Keybinds 0 Fullscreen 1 Font 24/Smallcaps Map View 50x35 Zoom Use 0% Tactical HUD 1 Map Filters NONE Filters NONE Steam 1 RUN: a627795c-bd6b-4708-be87-99c004292d6b